lending/lending_fUSD_20250429
["ID","MTS","AMOUNT","RATE_DAILY","PERIOD"]
[359314208,1745914242712,-470.0,0.00028233,2]
[359314209,1745914242723,-557.13,0.00028233,2]
[359314210,1745914242734,-470.0,0.00028233,2]
[359314211,1745914242743,-470.0,0.00028233,2]
[359314212,1745914242754,-470.0,0.00028233,2]
[359314213,1745914242763,-545.79,0.00028233,2]
[359314214,1745914242772,-470.0,0.00028233,2]
[359314215,1745914242782,-470.0,0.00028233,2]
[359314216,1745914242792,-470.0,0.00028233,2]
[359314217,1745914242803,-470.0,0.00028233,2]
[359314218,1745914242814,-470.0,0.00028233,2]
[359314219,1745914242823,-470.0,0.00028233,2]
[359314220,1745914242834,-470.0,0.00028233,2]
[359314221,1745914242845,-470.0,0.00028233,2]
[359314222,1745914242855,-470.0,0.00028233,2]
[359314223,1745914242867,-470.0,0.00028233,2]
[359314224,1745914242876,-396.40512722,0.00028233,2]
[359314225,1745914242885,-505.93,0.00028233,2]
[359314226,1745914242895,-470.0,0.00028233,2]
[359314227,1745914242905,-470.0,0.00028233,2]
[359314228,1745914242917,-470.0,0.00028233,2]
[359314229,1745914242926,-481.4,0.00028233,2]
[359314230,1745914242935,-470.0,0.00028233,2]
[359314231,1745914242944,-1065.13,0.00028233,2]
[359314232,1745914242955,-726.82,0.00028233,2]
[359314233,1745914242965,-470.0,0.00028233,2]
[359314234,1745914242975,-470.0,0.00028233,2]
[359314235,1745914242985,-470.0,0.00028233,2]
[359314237,1745914242995,-470.0,0.00028233,2]
[359314239,1745914243005,-470.0,0.00028233,2]
[359314241,1745914243015,-470.0,0.00028234,2]
[359314243,1745914243025,-470.0,0.00028234,2]
[359314245,1745914243035,-470.0,0.00028234,2]
[359314246,1745914243044,-470.0,0.00028234,2]
[359314247,1745914243053,-470.0,0.00028234,2]
[359314248,1745914243063,-470.0,0.00028234,2]
[359314249,1745914243072,-470.0,0.00028234,2]
[359314250,1745914243081,-470.0,0.00028234,2]
[359314251,1745914243090,-330.66711781,0.00028234,2]
[359314252,1745914243100,-470.0,0.00028234,2]
[359314253,1745914243110,-470.0,0.00028234,2]
[359314254,1745914243120,-545.10082957,0.00028234,2]
[359314255,1745914243129,-470.0,0.00028234,2]
[359314256,1745914243139,-507.92578813,0.00028234,2]
[359314257,1745914243148,-364.12742217,0.00028234,2]
[359314258,1745914243157,-470.0,0.00028234,2]
[359314259,1745914243166,-486.64,0.00028234,2]
[359314260,1745914243175,-470.0,0.00028234,2]
[359314261,1745914243185,-546.04,0.00028234,2]
[359314262,1745914243194,-470.0,0.00028234,2]
[359314263,1745914243203,-470.0,0.00028234,2]
[359314264,1745914243213,-470.0,0.00028234,2]
[359314265,1745914243222,-470.0,0.00028234,2]
[359314266,1745914243232,-470.0,0.00028234,2]
[359314267,1745914243241,-470.0,0.00028234,2]
[359314268,1745914243251,-470.0,0.00028234,2]
[359314269,1745914243260,-470.0,0.00028234,2]
[359314270,1745914243270,-470.0,0.00028234,2]
[359314271,1745914243279,-470.0,0.00028234,2]
[359314272,1745914243289,-470.0,0.00028234,2]
[359314273,1745914243298,-470.0,0.00028234,2]
[359314274,1745914243307,-470.0,0.00028234,2]
[359314275,1745914243317,-492.55,0.00028234,2]
[359314276,1745914243326,-470.0,0.00028234,2]
[359314277,1745914243336,-470.0,0.00028234,2]
[359314278,1745914243346,-470.0,0.00028234,2]
[359314279,1745914243355,-470.0,0.00028234,2]
[359314280,1745914243364,-470.0,0.00028234,2]
[359314281,1745914243373,-470.0,0.00028234,2]
[359314282,1745914243382,-470.0,0.00028234,2]
[359314283,1745914243392,-470.0,0.00028234,2]
[359314284,1745914243402,-470.0,0.00028234,2]
[359314285,1745914243411,-470.0,0.00028234,2]
[359314286,1745914243421,-470.0,0.00028234,2]
[359314287,1745914243430,-470.0,0.00028234,2]
[359314288,1745914243440,-470.0,0.00028234,2]
[359314289,1745914243449,-470.0,0.00028234,2]
[359314290,1745914243458,-470.0,0.00028234,2]
[359314291,1745914243466,-470.0,0.00028234,2]
[359314292,1745914243476,-470.0,0.00028234,2]
[359314293,1745914243485,-470.0,0.00028234,2]
[359314294,1745914243494,-470.0,0.00028234,2]
[359314295,1745914243503,-470.0,0.00028234,2]
[359314296,1745914243513,-470.0,0.00028234,2]
[359314297,1745914243521,-470.0,0.00028234,2]
[359314298,1745914243531,-470.0,0.00028234,2]
[359314299,1745914243541,-470.0,0.00028234,2]
[359314300,1745914243549,-470.0,0.00028234,2]
[359314301,1745914243558,-470.0,0.00028234,2]
[359314302,1745914243567,-495.16,0.00028234,2]
[359314303,1745914243576,-470.0,0.00028234,2]
[359314304,1745914243587,-470.0,0.00028234,2]
[359314305,1745914243598,-501.29,0.00028234,2]
[359314306,1745914243608,-470.0,0.00028234,2]
[359314307,1745914243617,-470.0,0.00028234,2]
[359314308,1745914243626,-470.0,0.00028234,2]
[359314309,1745914243635,-470.0,0.00028234,2]
[359314310,1745914243645,-470.0,0.00028234,2]
[359314311,1745914243655,-470.0,0.00028234,2]
[359314312,1745914243664,-470.0,0.00028234,2]
[359314313,1745914243675,-470.0,0.00028234,2]
[359314314,1745914243684,-470.0,0.00028234,2]
[359314315,1745914243694,-539.7,0.00028234,2]
[359314316,1745914243703,-470.0,0.00028234,2]
[359314317,1745914243712,-300.0,0.00028234,2]
[359314318,1745914243722,-470.0,0.00028234,2]
[359314319,1745914243731,-470.0,0.00028234,2]
[359314320,1745914243741,-470.0,0.00028234,2]
[359314321,1745914243751,-470.0,0.00028234,2]
[359314322,1745914243760,-470.0,0.00028234,2]
[359314323,1745914243770,-470.0,0.00028234,2]
[359314324,1745914243780,-470.0,0.00028234,2]
[359314325,1745914243790,-470.0,0.00028234,2]
[359314326,1745914243799,-470.0,0.00028234,2]
[359314327,1745914243809,-470.0,0.00028234,2]
[359314328,1745914243821,-470.0,0.00028234,2]
[359314329,1745914243830,-470.0,0.00028234,2]
[359314330,1745914243840,-470.0,0.00028234,2]
[359314331,1745914243849,-470.0,0.00028234,2]
[359314332,1745914243859,-158.06644379,0.00028234,2]
[359314333,1745914243869,-470.0,0.00028234,2]
[359314334,1745914243879,-500.0,0.00028234,2]
[359314335,1745914243889,-470.0,0.00028234,2]
[359314336,1745914243898,-470.0,0.00028234,2]
[359314337,1745914243908,-470.0,0.00028234,2]
[359314338,1745914243918,-470.0,0.00028234,2]
[359314339,1745914243928,-470.0,0.00028234,2]
[359314340,1745914243938,-470.0,0.00028234,2]
[359314341,1745914243947,-470.0,0.00028234,2]
[359314342,1745914243957,-831.81,0.00028234,2]
[359314343,1745914243967,-470.0,0.00028234,2]
[359314344,1745914243976,-856.73,0.00028234,2]
[359314345,1745914243985,-470.0,0.00028234,2]
[359314346,1745914243995,-470.0,0.00028234,2]
[359314347,1745914244005,-470.0,0.00028234,2]
[359314348,1745914244014,-470.0,0.00028234,2]
[359314349,1745914244024,-470.0,0.00028234,2]
[359314350,1745914244034,-470.0,0.00028234,2]
[359314351,1745914244044,-470.0,0.00028234,2]
[359314352,1745914244054,-470.0,0.00028234,2]
[359314353,1745914244064,-470.0,0.00028234,2]
[359314354,1745914244074,-470.0,0.00028234,2]
[359314355,1745914244084,-470.0,0.00028234,2]
[359314356,1745914244094,-470.0,0.00028234,2]
[359314357,1745914244103,-470.0,0.00028234,2]
[359314358,1745914244113,-470.0,0.00028234,2]
[359314359,1745914244122,-961.07,0.00028234,2]
[359314360,1745914244132,-470.0,0.00028234,2]
[359314361,1745914244141,-470.0,0.00028234,2]
[359314362,1745914244150,-470.0,0.00028234,2]
[359314363,1745914244160,-470.0,0.00028234,2]
[359314364,1745914244170,-470.0,0.00028234,2]
[359314365,1745914244179,-470.0,0.00028234,2]
[359314366,1745914244189,-434.78604365,0.00028234,2]
[359314367,1745914244198,-470.0,0.00028234,2]
[359314368,1745914244207,-470.0,0.00028234,2]
[359314369,1745914244217,-470.0,0.00028234,2]
[359314370,1745914244226,-470.0,0.00028234,2]
[359314371,1745914244235,-599.39205387,0.00028234,2]
[359314372,1745914244245,-470.0,0.00028234,2]
[359314373,1745914244255,-470.0,0.00028234,2]
[359314374,1745914244265,-470.0,0.00028234,2]
[359314375,1745914244274,-470.0,0.00028234,2]
[359314376,1745914244284,-470.0,0.00028234,2]
[359314377,1745914244294,-201.79386331,0.00028234,2]
[359314378,1745914244304,-470.0,0.00028234,2]
[359314379,1745914244314,-470.0,0.00028234,2]
[359314380,1745914244323,-470.0,0.00028234,2]
[359314381,1745914244333,-470.0,0.00028234,2]
[359314382,1745914244343,-490.73,0.00028234,2]
[359314383,1745914244352,-470.0,0.00028234,2]
[359314385,1745914244361,-470.0,0.00028234,2]
[359314388,1745914244371,-470.0,0.00028234,2]
[359314389,1745914244380,-470.0,0.00028234,2]
[359314391,1745914244390,-470.0,0.00028234,2]
[359314393,1745914244399,-475.44,0.00028234,2]
[359314394,1745914244408,-470.0,0.00028234,2]
[359314395,1745914244417,-470.0,0.00028234,2]
[359314396,1745914244426,-500.0,0.00028234,2]
[359314397,1745914244435,-527.7,0.00028234,2]
[359314398,1745914244444,-470.0,0.00028234,2]
[359314399,1745914244452,-470.0,0.00028234,2]
[359314400,1745914244461,-470.0,0.00028234,2]
[359314401,1745914244471,-470.0,0.00028234,2]
[359314402,1745914244480,-470.0,0.00028234,2]
[359314403,1745914244489,-470.0,0.00028234,2]
[359314404,1745914244499,-470.0,0.00028234,2]
[359314405,1745914244508,-470.0,0.00028234,2]
[359314406,1745914244517,-470.0,0.00028234,2]
[359314407,1745914244527,-2185.4044,0.00028236,2]
[359314408,1745914244536,-470.0,0.00028236,2]
[359314409,1745914244546,-560.22262948,0.00028236,2]
[359314410,1745914244555,-470.0,0.00028236,2]
[359314411,1745914244564,-688.34,0.00028236,2]
[359314412,1745914244574,-170.17736594,0.00028236,2]
[359314413,1745914244583,-490.0,0.00028236,2]
[359314414,1745914244592,-470.0,0.00028236,2]
[359314415,1745914244602,-560.52,0.00028236,2]
[359314416,1745914244612,-470.0,0.00028236,2]
[359314417,1745914244622,-474.75565821,0.00028236,2]
[359314418,1745914244633,-470.0,0.00028236,2]
[359314419,1745914244643,-470.0,0.00028236,2]
[359314420,1745914244652,-470.0,0.00028236,2]
[359314421,1745914244662,-250.0,0.00028236,2]
[359314422,1745914244672,-392.11828764,0.00028236,2]
[359314423,1745914244682,-470.0,0.00028236,2]
[359314424,1745914244691,-470.0,0.00028236,2]
[359314425,1745914244700,-470.0,0.00028236,2]
[359314426,1745914244710,-470.0,0.00028236,2]
[359314427,1745914244719,-246.88536534,0.00028236,2]
[359314428,1745914244729,-470.0,0.00028236,2]
[359314429,1745914244739,-470.0,0.00028236,2]
[359314430,1745914244748,-400.87069824,0.00028236,2]
[359314431,1745914244757,-470.0,0.00028236,2]
[359314432,1745914244766,-543.85,0.00028236,2]
[359314433,1745914244775,-470.0,0.00028236,2]
[359314434,1745914244784,-585.34,0.00028236,2]
[359314435,1745914244793,-478.29,0.00028236,2]
[359314436,1745914244802,-529.95,0.00028236,2]
[359314437,1745914244813,-470.0,0.00028236,2]
[359314438,1745914244824,-470.0,0.00028236,2]
[359314439,1745914244834,-470.0,0.00028236,2]
[359314441,1745914244844,-715.27,0.00028236,2]
[359314442,1745914244854,-470.0,0.00028236,2]
[359314443,1745914244863,-470.0,0.00028236,2]
[359314444,1745914244872,-544.94477294,0.00028236,2]
[359314445,1745914244881,-611.08,0.00028236,2]
[359314446,1745914244891,-470.0,0.00028236,2]
[359314447,1745914244901,-470.0,0.00028236,2]
[359314448,1745914244910,-470.0,0.00028236,2]
[359314450,1745914244920,-470.0,0.00028236,2]
[359314452,1745914244929,-470.0,0.00028236,2]
[359314454,1745914244939,-470.0,0.00028236,2]
[359314455,1745914244948,-900.39,0.00028236,2]
[359314456,1745914244958,-449.34244596,0.00028236,2]
[359314457,1745914244967,-470.0,0.00028236,2]
[359314458,1745914244976,-470.0,0.00028236,2]
[359314459,1745914244987,-401.91153165,0.00028236,2]
[359314460,1745914245001,-349.17821084,0.00028236,2]
[359314461,1745914245012,-530.92978694,0.00028236,2]
[359314462,1745914245024,-470.0,0.00028236,2]
[359314463,1745914245033,-470.0,0.00028236,2]
[359314464,1745914245043,-724.55,0.00028236,2]
[359314465,1745914245052,-470.0,0.00028236,2]
[359314466,1745914245062,-422.28792959,0.00028236,2]
[359314467,1745914245073,-470.0,0.00028236,2]
[359314468,1745914245083,-518.04021984,0.00028236,2]
[359314469,1745914245092,-470.0,0.00028236,2]
[359314470,1745914245101,-241.42784223,0.00028236,2]
[359314471,1745914245111,-503.93505354,0.00028236,2]
[359314472,1745914245121,-422.26119446,0.00028236,2]
[359314473,1745914245131,-627.15,0.00028236,2]
[359314474,1745914245140,-470.0,0.00028236,2]
[359314475,1745914245149,-470.0,0.00028236,2]
[359314476,1745914245159,-650.96,0.00028236,2]
[359314477,1745914245168,-610.62,0.00028236,2]
[359314478,1745914245177,-470.0,0.00028236,2]
[359314479,1745914245186,-567.4071326,0.00028236,2]
[359314480,1745914245196,-470.0,0.00028236,2]
[359314481,1745914245205,-470.0,0.00028236,2]
[359314482,1745914245215,-470.0,0.00028236,2]
[359314483,1745914245224,-605.17,0.00028236,2]
[359314484,1745914245234,-470.0,0.00028236,2]
[359314485,1745914245243,-600.09575515,0.00028236,2]
[359314486,1745914245253,-470.0,0.00028236,2]
[359314487,1745914245262,-602.35,0.00028236,2]
[359314488,1745914245271,-470.0,0.00028236,2]
[359314489,1745914245281,-470.0,0.00028236,2]
[359314490,1745914245292,-689.49918464,0.00028236,2]
[359314491,1745914245301,-500.78381634,0.00028236,2]
[359314492,1745914245311,-470.0,0.00028236,2]
[359314493,1745914245321,-556.29,0.00028236,2]
[359314494,1745914245511,-470.0,0.00028236,2]
[359314495,1745914245522,-299.30163811,0.00028236,2]
[359314496,1745914245532,-470.0,0.00028236,2]
[359314497,1745914245543,-470.0,0.00028236,2]
[359314498,1745914245552,-273.86608913,0.00028236,2]
[359314499,1745914245561,-470.0,0.00028236,2]
[359314500,1745914245571,-470.0,0.00028236,2]
[359314501,1745914245581,-470.0,0.00028236,2]
[359314502,1745914245590,-470.0,0.00028236,2]
[359314503,1745914245599,-235.71287107,0.00028236,2]
[359314504,1745914245609,-470.0,0.00028236,2]
[359314505,1745914245619,-470.0,0.00028236,2]
[359314506,1745914245628,-470.0,0.00028236,2]
[359314507,1745914245638,-470.0,0.00028236,2]
[359314508,1745914245647,-470.0,0.00028236,2]
[359314509,1745914245657,-470.0,0.00028236,2]
[359314510,1745914245666,-470.0,0.00028236,2]
[359314511,1745914245675,-470.0,0.00028236,2]
[359314512,1745914245685,-470.0,0.00028236,2]
[359314513,1745914245694,-470.0,0.00028236,2]
[359314514,1745914245703,-470.0,0.00028236,2]
[359314515,1745914245713,-470.0,0.00028236,2]
[359314516,1745914245723,-282.42943018,0.00028236,2]
[359314517,1745914245732,-470.0,0.00028236,2]
[359314518,1745914245741,-470.0,0.00028236,2]
[359314519,1745914245751,-470.0,0.00028236,2]
[359314520,1745914245760,-493.87,0.00028236,2]
[359314521,1745914245770,-470.0,0.00028236,2]
[359314522,1745914245779,-470.0,0.00028236,2]
[359314523,1745914245790,-470.0,0.00028236,2]
[359314524,1745914245799,-470.0,0.00028236,2]
[359314525,1745914245809,-470.0,0.00028236,2]
[359314526,1745914245827,-470.0,0.00028236,2]
[359314527,1745914245837,-470.0,0.00028236,2]
[359314528,1745914245847,-1849.26,0.00028236,2]
[359314529,1745914245856,-470.0,0.00028236,2]
[359314530,1745914245867,-470.0,0.00028236,2]
[359314531,1745914245877,-470.0,0.00028236,2]
[359314532,1745914245886,-514.48,0.00028236,2]
[359314533,1745914245896,-470.0,0.00028236,2]
[359314534,1745914245908,-167.31250492,0.00028237,2]
[359314535,1745914245918,-655.51363888,0.00028237,2]
[359314536,1745914245928,-2691.9007085,0.00028237,2]
[359314537,1745914245940,-2008.25737754,0.00028237,2]
[359314538,1745914245950,-924.79256052,0.00028237,2]
[359314539,1745914245960,-160.52554917,0.00028237,2]
[359314540,1745914245970,-298.18574467,0.00028266,2]
[359314541,1745914245980,-522.5806387,0.00028273,5]
[359314542,1745914245990,-156.35856,0.00028275,7]
[359314543,1745914245999,-151.0,0.00028275,7]
[359314544,1745914246009,-151.0,0.00028275,7]
[359314545,1745914246018,-256.95353205,0.00028275,2]
[359314546,1745914246028,-462344.84516506,0.00028275,2]
[359314547,1745914246038,-21967.64831398,0.00028275,2]
[359314548,1745914246138,-558.89350208,0.00028275,2]
[359314549,1745914246150,-1252.05330567,0.00028275,2]
[359314550,1745914246184,-5392.85105285,0.00028275,2]
[359314551,1745914246195,-664.80001046,0.00028275,2]
[359314560,1745914248006,-1.48493819,0.00028233,2]
[359314561,1745914248397,-597.39506181,0.00028233,2]
[359314562,1745914248408,-21168.09035469,0.00028275,2]
[359314563,1745914248420,-1591.90557605,0.00028275,2]
[359314564,1745914248436,-371.39994457,0.00028275,2]
[359314565,1745914249260,-404.54467113,0.00028275,2]
[359314566,1745914249374,-151.0,0.00028275,7]
[359314567,1745914249385,-117.987887,0.00028275,2]
[359314568,1745914249397,-318.8803487,0.00028275,2]
[359314569,1745914249409,-310.0594,0.00028275,2]
[359314570,1745914249431,-1554.76,0.00028275,2]
[359314571,1745914249444,-4507.43358716,0.00028275,2]
[359314572,1745914249455,-364.3572772,0.00028275,2]
[359314575,1745914323323,200.0,0.00031016,117]
[359314576,1745914323419,200.0,0.00028214,117]
[359314577,1745914323477,200.0,0.00028227,117]
[359314578,1745914425983,580.52131357,0.00036986,60]
[359314580,1745914674630,2011.0306512,0.00036986,60]
[359314581,1745914820855,174.53,0.00027217,120]
[359314582,1745914976258,2837.913544,0.0003698,60]
[359314583,1745915076917,-391.98493819,0.00025335,2]
[359314592,1745915179967,150102.27978278,0.000209,30]
[359314597,1745915289444,250.0,0.00017,2]
[359314619,1745915432327,-152.0,0.00021787,2]
[359314620,1745915432338,-200.0,0.00023966,2]
[359314621,1745915432348,-322.48506181,0.00025335,2]
[359314622,1745915432358,-207.4,0.00026912,2]
[359314623,1745915432371,-250.0,0.00026956,2]
[359314624,1745915432381,-155.0,0.00027,7]
[359314625,1745915432392,-165.17,0.00027195,2]
[359314626,1745915432403,-1000.0,0.00027217,2]
[359314627,1745915432413,-250.0,0.00027223,2]
[359314628,1745915432423,-152.02,0.00027397,2]
[359314629,1745915432432,-184.54,0.00027397,2]
[359314630,1745915432445,-446.86,0.00027397,2]
[359314631,1745915432455,-279.72344811,0.00027599,2]
[359314632,1745915432472,-434.74655189,0.00027599,2]
[359314633,1745915432483,-200.0,0.00028049,2]
[359314634,1745915432493,-337.74853537,0.00028102,2]
[359314635,1745915432503,-330.15656835,0.00028134,2]
[359314636,1745915432512,-330.15656835,0.00028145,2]
[359314637,1745915432523,-330.15656835,0.00028157,2]
[359314638,1745915432532,-330.15656835,0.00028168,2]
[359314639,1745915432542,-1200.0,0.00028175,2]
[359314640,1745915432551,-7045.03971234,0.00028176,2]
[359314641,1745915432562,-2415.14946017,0.00028176,2]
[359314642,1745915432573,-318.1799051,0.00028176,2]
[359314643,1745915432585,-1411.34652239,0.00028176,2]
[359314644,1745915432595,-330.15656835,0.0002818,2]
[359314645,1745915432604,-341.99788455,0.00028186,2]
[359314646,1745915432614,-330.15656835,0.00028191,2]
[359314647,1745915432623,-168.97648437,0.00028196,2]
[359314648,1745915432632,-1008.64185531,0.000282,2]
[359314649,1745915432643,-172.5032771,0.000282,2]
[359314650,1745915432652,-330.15656835,0.00028203,2]
[359314651,1745915432661,-387.71598775,0.00028206,2]
[359314652,1745915432671,-387.71598767,0.00028209,2]
[359314653,1745915432681,-387.71598767,0.00028213,2]
[359314654,1745915432691,-330.15656835,0.00028214,2]
[359314655,1745915432701,-387.71598767,0.00028216,2]
[359314657,1745915432710,-387.71598767,0.0002822,2]
[359314659,1745915432720,-387.71598767,0.00028223,2]
[359314661,1745915432730,-330.15656835,0.00028226,2]
[359314663,1745915432741,-387.71598767,0.00028227,2]
[359314665,1745915432750,-171.19106511,0.00028227,2]
[359314667,1745915432759,-387.71598767,0.0002823,2]
[359314669,1745915432768,-573.93,0.00028232,2]
[359314671,1745915432778,-493.04,0.00028232,2]
[359314673,1745915432788,-470.0,0.00028232,2]
[359314675,1745915432798,-595.25,0.00028232,2]
[359314677,1745915432807,-521.39,0.00028232,2]
[359314680,1745915432816,-470.0,0.00028232,2]
[359314683,1745915432826,-470.0,0.00028232,2]
[359314685,1745915432835,-470.0,0.00028232,2]
[359314687,1745915432845,-470.0,0.00028232,2]
[359314689,1745915432855,-470.0,0.00028232,2]
[359314691,1745915432864,-470.0,0.00028232,2]
[359314693,1745915432873,-470.0,0.00028232,2]
[359314695,1745915432883,-470.0,0.00028232,2]
[359314697,1745915432893,-470.0,0.00028232,2]
[359314699,1745915432902,-470.0,0.00028232,2]
[359314701,1745915432912,-41.88559148,0.00028232,2]
[359314714,1745915433031,-428.11440852,0.00028232,2]
[359314716,1745915433040,-23.18559148,0.00028232,2]
[359315452,1745915446356,-446.81440852,0.00028232,2]
[359315454,1745915446366,-470.0,0.00028232,2]
[359315456,1745915446376,-177.53279648,0.00028232,2]
[359315469,1745915446497,-292.46720352,0.00028232,2]
[359315471,1745915446506,-530.02,0.00028232,2]
[359315473,1745915446516,-470.0,0.00028232,2]
[359315475,1745915446525,-123.31090066,0.00028232,2]
[359315477,1745915446538,-346.68909934,0.00028232,2]
[359315479,1745915446548,-511.72,0.00028232,2]
[359315481,1745915446558,-470.0,0.00028232,2]
[359315483,1745915446568,-470.0,0.00028232,2]
[359315485,1745915446577,-470.0,0.00028232,2]
[359315487,1745915446586,-470.0,0.00028232,2]
[359315489,1745915446596,-470.0,0.00028232,2]
[359315491,1745915446606,-470.0,0.00028232,2]
[359315493,1745915446619,-769.03,0.00028232,2]
[359315495,1745915446628,-470.0,0.00028232,2]
[359315497,1745915446637,-470.0,0.00028232,2]
[359315499,1745915446647,-499.91,0.00028232,2]
[359315501,1745915446655,-470.0,0.00028232,2]
[359315503,1745915446665,-470.0,0.00028232,2]
[359315505,1745915446674,-470.0,0.00028232,2]
[359315507,1745915446683,-470.0,0.00028232,2]
[359315509,1745915446694,-470.0,0.00028232,2]
[359315511,1745915446703,-470.0,0.00028232,2]
[359315513,1745915446713,-175.15090066,0.00028232,2]
[359315548,1745915447019,-294.84909934,0.00028232,2]
[359315550,1745915447029,-470.0,0.00028232,2]
[359315552,1745915447038,-470.0,0.00028232,2]
[359315554,1745915447048,-470.0,0.00028232,2]
[359315556,1745915447057,-470.0,0.00028232,2]
[359315558,1745915447066,-470.0,0.00028232,2]
[359315560,1745915447076,-470.0,0.00028232,2]
[359315562,1745915447086,-470.0,0.00028232,2]
[359315564,1745915447095,-470.0,0.00028232,2]
[359315566,1745915447105,-470.0,0.00028232,2]
[359315568,1745915447117,-591.41516546,0.00028232,2]
[359315570,1745915447126,-470.0,0.00028232,2]
[359315572,1745915447137,-470.0,0.00028232,2]
[359315574,1745915447146,-470.0,0.00028232,2]
[359315576,1745915447156,-774.42,0.00028232,2]
[359315578,1745915447165,-470.0,0.00028232,2]
[359315580,1745915447174,-470.0,0.00028232,2]
[359315582,1745915447183,-470.0,0.00028232,2]
[359315584,1745915447192,-470.0,0.00028232,2]
[359315586,1745915447202,-470.0,0.00028232,2]
[359315588,1745915447211,-470.0,0.00028232,2]
[359315590,1745915447220,-470.0,0.00028232,2]
[359315592,1745915447230,-470.0,0.00028232,2]
[359315594,1745915447239,-470.0,0.00028232,2]
[359315596,1745915447249,-1434.91,0.00028232,2]
[359315598,1745915447258,-500.0,0.00028232,2]
[359315600,1745915447267,-470.0,0.00028232,2]
[359315602,1745915447276,-470.0,0.00028232,2]
[359315604,1745915447286,-470.0,0.00028232,2]
[359315606,1745915447295,-470.0,0.00028232,2]
[359315608,1745915447304,-470.0,0.00028232,2]
[359315610,1745915447313,-470.0,0.00028232,2]
[359315612,1745915447322,-470.0,0.00028232,2]
[359315613,1745915447331,-470.0,0.00028232,2]
[359315616,1745915447341,-470.0,0.00028232,2]
[359315618,1745915447353,-470.0,0.00028232,2]
[359315620,1745915447364,-470.0,0.00028232,2]
[359315622,1745915447374,-470.0,0.00028232,2]
[359315624,1745915447383,-470.0,0.00028232,2]
[359315626,1745915447392,-1188.23,0.00028232,2]
[359315628,1745915447401,-470.0,0.00028232,2]
[359315630,1745915447410,-479.34,0.00028232,2]
[359315632,1745915447420,-556.28,0.00028232,2]
[359315634,1745915447430,-470.0,0.00028232,2]
[359315636,1745915447439,-470.0,0.00028232,2]
[359315638,1745915447452,-455.0,0.00028232,2]
[359315639,1745915447461,-523.05,0.00028232,2]
[359315640,1745915447470,-268.73113194,0.00028232,2]
[359315641,1745915447479,-470.0,0.00028232,2]
[359315642,1745915447488,-470.0,0.00028232,2]
[359315643,1745915447498,-470.0,0.00028232,2]
[359315645,1745915447507,-470.0,0.00028232,2]
[359315647,1745915447519,-470.0,0.00028232,2]
[359315649,1745915447530,-470.0,0.00028232,2]
[359315651,1745915447539,-470.0,0.00028232,2]
[359315653,1745915447548,-150.0,0.00028232,2]
[359315655,1745915447557,-150.0,0.00028232,2]
[359315657,1745915447567,-470.0,0.00028232,2]
[359315659,1745915447576,-470.0,0.00028232,2]
[359315661,1745915447585,-470.0,0.00028232,2]